[Event "XVI Memorial Lezcano Montalvo 2024"]
[Site "Gran Canaria"]
[Date "2024.03.25"]
[Round "3.27"]
[White "Barrera Martin, Nayra Maria"]
[Black "Fernandez Manrique, Agustin"]
[Result "1/2-1/2"]
[ECO "E90"]
[WhiteElo "1728"]
[BlackElo "2017"]
[Annotator "RC"]
[PlyCount "111"]
[EventDate "2024.03.23"]
[EventType "swiss"]
[EventCountry "ESP"]
[SourceTitle "playchess.com"]
[Source "ChessBase"]
[SourceQuality "1"]
[TimeControl "5400+30"]

1. c4 {[%emt 0:01:04]} Nf6 {[%emt 1:31:00]} 2. d4 {[%emt 0:01:03]} g6 {[%emt 0:00:00]} 3. Nc3 {[%emt 0:00:05]} Bg7 {[%emt 0:00:00]} 4. e4 {[%emt 0:01:40]} d6 {[%emt 0:00:00]} 5. Be3 {[%emt 1:29:08]} O-O {[%emt 0:00:00]} 6. Nf3 {[%emt 0:00:30]} Nbd7 {[%emt 0:00:00]} 7. Bd3 {[%emt 0:00:30]} e5 {[%emt 0:03:00]} 8. O-O {[%emt 0:00:00]} c6 {[%emt 0:00:30]} 9. h3 {[%emt 0:01:00]} exd4 {[%emt 0:00:30]} 10. Bxd4 {[%emt 0:00:30]} Re8 {[%emt 0:00:30]} 11. Re1 {[%emt 0:00:00]} Ne5 {[%emt 0:00:30]} 12. Nxe5 {[%emt 0:00:00]} dxe5 {[%emt 0:00:30]} 13. Be3 {[%emt 0:01:30]} Nh5 {[%emt 0:00:00]} 14. Be2 {[%emt 0:00:00]} Nf4 {[%emt 0:00:00]} 15. Qxd8 {[%emt 0:00:00]} Nxe2+ {[%emt 0:00:00]} 16. Rxe2 {[%emt 0:00:00]} Rxd8 {[%emt 0:00:00]} 17. Rd2 {[%emt 0:00:00]} Rxd2 {[%emt 0:00:00]} 18. Bxd2 {[%emt 0:00:00]} Be6 {[%emt 0:00:00]} 19. b3 {[%emt 0:00:00]} f5 {[%emt 0:00:00]} 20. Re1 {[%emt 0:00:00]} Rd8 {[%emt 0:00:00]} 21. Bg5 {[%emt 0:00:00]} Rd3 {[%emt 0:00:00]} 22. Na4 {[%emt 0:00:00]} b6 {[%emt 0:00:00]} 23. Nb2 {[%emt 0:00:00]} Rd4 {[%emt 0:00:00]} 24. f3 {[%emt 0:00:00]} f4 {[%emt 0:00:00]} 25. Rd1 {[%emt 0:00:00]} Rxd1+ {[%emt 0:00:00]} 26. Nxd1 {[%emt 0:00:00]} Kf7 {[%emt 0:07:00]} 27. Bd8 {[%emt 0:00:00]} Ke8 {[%emt 0:00:00]} 28. Bc7 {[%emt 0:00:00]} Kd7 {[%emt 0:00:00]} 29. Bb8 {[%emt 0:00:00]} Kc8 {[%emt 0:00:00]} 30. Bd6 {[%emt 0:00:00]} Kd7 {[%emt 0:00:00]} 31. Bb4 {[%emt 0:00:00]} h5 {[%emt 0:00:00]} 32. Kf2 {[%emt 0:00:00]} g5 {[%emt 0:00:00]} 33. Nb2 {[%emt 0:00:00]} g4 {[%emt 0:00:00]} 34. hxg4 {[%emt 0:00:00]} hxg4 {[%emt 0:00:00]} 35. Nd3 {[%emt 0:00:00]} gxf3 {[%emt 0:00:00]} 36. gxf3 {[%emt 0:00:00]} Bf6 {[%emt 0:00:00]} 37. Ke2 {[%emt 0:00:00]} Bf7 {[%emt 0:00:00]} 38. Bc3 {[%emt 0:00:00]} Ke6 {[%emt 0:00:00]} 39. Bb4 {[%emt 0:00:00]} Bd8 {[%emt 0:00:00]} 40. Bc3 {[%emt 0:00:00]} Bc7 {[%emt 0:00:00]} 41. Nb4 {[%emt 0:00:00]} Be8 {[%emt 0:00:00]} 42. Nd3 {[%emt 0:00:00]} Bd6 {[%emt 0:00:00]} 43. Kf2 {[%emt 0:01:01]} Bd7 {[%emt 0:00:00]} 44. Ke2 {[%emt 0:00:20]} Bc8 {[%emt 0:00:00]} 45. Kf2 {[%emt 0:00:28]} Ba6 {[%emt 0:00:00]} 46. Ke2 {[%emt 0:01:24]} Bb7 {[%emt 0:00:51]} 47. Kf2 {[%emt 0:03:26]} Ba6 {[%emt 0:05:38]} 48. Ke2 {[%emt 0:10:51]} Bb7 {[%emt 0:04:31]} 49. Kf2 {[%emt 0:00:30]} a5 {[%emt 0:00:30]} 50. Nb2 {[%emt 0:00:30]} Bc7 {[%emt 0:00:30]} 51. Na4 Bd6 52. Nb2 {[%emt 0:01:00]} Bc7 {[%emt 0:01:00]} 53. Nd3 {[%emt 0:00:30]} Ba6 {[%emt 0:00:30]} 54. Nb2 {[%emt 0:00:30]} b5 {[%emt 0:00:30]} 55. Ke2 {[%emt 0:00:30]} b4 {[%emt 0:00:30]} 56. Bd2 {[%emt 0:00:30]} 1/2-1/2

[Event "XVI Memorial Lezcano Montalvo 2024"]
[Site "Gran Canaria"]
[Date "2024.03.25"]
[Round "3.29"]
[White "Pleschke, Julius Jonas"]
[Black "Santos Falcon, Jose"]
[Result "1-0"]
[ECO "D00"]
[WhiteElo "1993"]
[BlackElo "1749"]
[Annotator "RC"]
[PlyCount "49"]
[EventDate "2024.03.23"]
[EventType "swiss"]
[EventCountry "ESP"]
[SourceTitle "playchess.com"]
[Source "ChessBase"]
[SourceQuality "1"]
[TimeControl "5400+30"]

1. d4 {[%emt 0:00:09]} d5 {[%emt 0:00:23]} 2. Nc3 {[%emt 0:01:03]} e6 {[%emt 0:01:39]} 3. Bf4 {[%emt 0:00:32]} Bd6 {[%emt 0:01:55]} 4. e3 {[%emt 0:00:59]} Bxf4 {[%emt 0:01:24]} 5. exf4 {[%emt 0:00:03]} Nf6 {[%emt 0:00:32]} 6. Nf3 {[%emt 0:00:26]} a6 {[%emt 1:27:37]} 7. a4 {[%emt 0:00:33]} Nbd7 {[%emt 0:00:00]} 8. Ne5 {[%emt 0:03:45]} c5 {[%emt 0:00:00]} 9. Nxd7 {[%emt 0:03:52]} Bxd7 {[%emt 0:00:00]} 10. dxc5 {[%emt 0:00:58]} Qc7 {[%emt 0:00:00]} 11. Qd4 {[%emt 0:00:24]} Rc8 {[%emt 0:00:00]} 12. b4 {[%emt 0:04:35]} b6 {[%emt 0:00:00]} 13. Bxa6 {[%emt 0:08:40]} bxc5 {[%emt 0:00:00]} 14. Qe5 {[%emt 0:07:32]} Qxe5+ {[%emt 0:00:00]} 15. fxe5 {[%emt 0:00:02]} Ra8 {[%emt 0:00:00]} 16. exf6 {[%emt 0:02:36]} Rxa6 {[%emt 0:00:00]} 17. fxg7 {[%emt 0:00:31]} Rg8 {[%emt 0:00:00]} 18. b5 {[%emt 0:00:43]} Ra8 {[%emt 0:00:00]} 19. O-O {[%emt 0:00:42]} Rxg7 {[%emt 0:00:00]} 20. b6 {[%emt 0:02:08]} Bc6 {[%emt 0:00:00]} 21. f3 {[%emt 0:00:36]} d4 {[%emt 0:00:00]} 22. Ne4 {[%emt 0:00:20]} Bxe4 {[%emt 0:00:00]} 23. fxe4 {[%emt 0:00:02]} Rg4 {[%emt 0:00:00]} 24. a5 {[%emt 0:00:35]} Kd7 {[%emt 0:00:00]} 25. Rxf7+ {[%emt 0:00:21]} 1-0

[Event "XVI Memorial Lezcano Montalvo 2024"]
[Site "Gran Canaria"]
[Date "2024.03.25"]
[Round "3.30"]
[White "Camara Bordon, Luis Marcos"]
[Black "Perez Garcia, Jimena"]
[Result "0-1"]
[ECO "B22"]
[WhiteElo "1718"]
[BlackElo "1992"]
[Annotator "RC"]
[PlyCount "52"]
[EventDate "2024.03.23"]
[EventType "swiss"]
[EventCountry "ESP"]
[SourceTitle "playchess.com"]
[Source "ChessBase"]
[SourceQuality "1"]
[TimeControl "5400+30"]

1. e4 {[%emt 0:00:31]} c5 {[%emt 0:00:29]} 2. c3 {[%emt 0:01:07]} d5 {[%emt 0:00:42]} 3. exd5 {[%emt 0:01:27]} Qxd5 {[%emt 0:00:57]} 4. d4 {[%emt 0:01:09]} Nf6 {[%emt 0:00:27]} 5. Nf3 {[%emt 0:05:51]} Nc6 {[%emt 0:02:45]} 6. Be3 {[%emt 0:05:13]} cxd4 {[%emt 0:01:37]} 7. cxd4 {[%emt 0:00:28]} e6 {[%emt 0:00:47]} 8. Nc3 {[%emt 0:02:35]} Qd6 {[%emt 0:03:09]} 9. Bb5 {[%emt 0:07:17]} Be7 {[%emt 0:07:12]} 10. O-O {[%emt 0:02:49]} O-O {[%emt 0:01:39]} 11. a3 {[%emt 0:01:40]} Rd8 {[%emt 0:10:32]} 12. Qe2 {[%emt 0:13:41]} a6 {[%emt 0:07:09]} 13. Bd3 {[%emt 0:01:15]} b5 {[%emt 0:02:49]} 14. Rac1 {[%emt 0:03:08]} Bb7 {[%emt 0:02:31]} 15. Rfd1 {[%emt 0:11:45]} Rac8 {[%emt 0:04:33]} 16. Bg5 {[%emt 0:06:08]} Na5 {[%emt 0:10:22]} 17. Bxf6 {[%emt 0:07:31]} Bxf6 {[%emt 0:00:07]} 18. Ne4 {[%emt 0:00:13]} Bxe4 {[%emt 0:01:03]} 19. Qxe4 {[%emt 0:00:26]} g6 {[%emt 0:00:37]} 20. Rxc8 {[%emt 0:00:22]} Rxc8 {[%emt 0:00:36]} 21. h4 {[%emt 0:10:40]} Rd8 {[%emt 0:03:18]} 22. h5 {[%emt 0:01:43]} Nc6 {[%emt 0:07:05]} 23. hxg6 {[%emt 0:03:22]} hxg6 {[%emt 0:00:07]} 24. Ne5 {[%emt 0:10:29]} Nxe5 {[%emt 0:06:52]} 25. dxe5 {[%emt 0:00:09]} Bxe5 {[%emt 0:00:20]} 26. Be2 {[%emt 0:00:24]} Qxd1+ {[%emt 0:25:45]} 0-1

[Event "XVI Memorial Lezcano Montalvo 2024"]
[Site "Gran Canaria"]
[Date "2024.03.25"]
[Round "3.31"]
[White "Segura Marsa, Andres"]
[Black "Ascension Suarez, Joel"]
[Result "1/2-1/2"]
[ECO "A10"]
[WhiteElo "1987"]
[BlackElo "1731"]
[Annotator "RC"]
[PlyCount "77"]
[EventDate "2024.03.23"]
[EventType "swiss"]
[EventCountry "ESP"]
[SourceTitle "playchess.com"]
[Source "ChessBase"]
[SourceQuality "1"]
[TimeControl "5400+30"]

1. c4 {[%emt 0:00:10]} b6 {[%emt 0:00:21]} 2. Nc3 {[%emt 0:00:24]} Bb7 {[%emt 0:00:20]} 3. e4 {[%emt 0:00:12]} e6 {[%emt 0:00:15]} 4. g3 {[%emt 0:01:57]} Bb4 {[%emt 0:00:14]} 5. Bg2 {[%emt 0:00:44]} Ne7 {[%emt 0:02:05]} 6. a3 {[%emt 0:00:45]} Bxc3 {[%emt 0:05:38]} 7. bxc3 {[%emt 0:00:08]} O-O {[%emt 0:01:02]} 8. Nf3 {[%emt 0:01:31]} Bxe4 {[%emt 0:00:23]} 9. d3 {[%emt 0:01:01]} Bb7 {[%emt 0:01:54]} 10. O-O {[%emt 0:00:12]} d5 {[%emt 0:02:07]} 11. cxd5 {[%emt 0:00:59]} Nxd5 {[%emt 0:01:27]} 12. c4 {[%emt 0:03:59]} Nf6 {[%emt 0:00:11]} 13. d4 {[%emt 0:01:20]} Nbd7 {[%emt 0:00:33]} 14. c5 {[%emt 0:10:46]} bxc5 {[%emt 0:01:40]} 15. dxc5 {[%emt 0:00:08]} Nxc5 {[%emt 0:00:14]} 16. Qc2 {[%emt 0:00:16]} Ncd7 {[%emt 0:07:57]} 17. Rd1 {[%emt 0:10:13]} Bd5 {[%emt 0:05:22]} 18. Bf4 {[%emt 0:05:06]} c5 {[%emt 0:06:11]} 19. Ne5 {[%emt 0:06:50]} Rc8 {[%emt 0:05:54]} 20. Qa4 {[%emt 0:02:26]} Nb6 {[%emt 0:03:59]} 21. Qb5 {[%emt 0:04:04]} Qe8 {[%emt 0:02:14]} 22. a4 {[%emt 0:01:24]} Qxb5 {[%emt 0:01:32]} 23. axb5 {[%emt 0:00:02]} Bxg2 {[%emt 0:00:25]} 24. Kxg2 {[%emt 0:00:06]} Nfd5 {[%emt 0:00:20]} 25. Rxa7 {[%emt 0:02:26]} Nc3 {[%emt 0:00:27]} 26. Rc1 {[%emt 0:00:43]} Nxb5 {[%emt 0:00:16]} 27. Rb7 {[%emt 0:01:32]} Rb8 {[%emt 0:00:06]} 28. Rxb8 {[%emt 0:00:08]} Rxb8 {[%emt 0:00:14]} 29. Nd7 {[%emt 0:07:00]} Nxd7 {[%emt 0:05:14]} 30. Bxb8 {[%emt 0:00:09]} Nxb8 {[%emt 0:00:02]} 31. Rb1 {[%emt 0:00:10]} Nd7 {[%emt 0:00:33]} 32. Rxb5 {[%emt 0:00:18]} Kf8 {[%emt 0:00:10]} 33. Rb7 {[%emt 0:01:37]} Ke7 {[%emt 0:00:38]} 34. Kf3 {[%emt 0:00:26]} Kd6 {[%emt 0:00:05]} 35. Ke3 {[%emt 0:00:12]} g6 {[%emt 0:02:26]} 36. Ra7 {[%emt 0:06:16]} h5 {[%emt 0:00:41]} 37. Ke4 {[%emt 0:02:59]} Nf6+ {[%emt 0:02:23]} 38. Kd3 {[%emt 0:05:14]} Ng4 {[%emt 0:04:40]} 39. Ke2 {[%emt 0:02:23]} 1/2-1/2

[Event "XVI Memorial Lezcano Montalvo 2024"]
[Site "Gran Canaria"]
[Date "2024.03.25"]
[Round "3.32"]
[White "Mesa Rodriguez, Antonio"]
[Black "Sosa Suarez, Carla Cristina"]
[Result "1/2-1/2"]
[ECO "C02"]
[WhiteElo "1697"]
[BlackElo "1980"]
[Annotator "RC"]
[PlyCount "60"]
[EventDate "2024.03.23"]
[EventType "swiss"]
[EventCountry "ESP"]
[SourceTitle "playchess.com"]
[Source "ChessBase"]
[SourceQuality "1"]
[TimeControl "5400+30"]

1. e4 {[%emt 0:00:02]} e6 {[%emt 0:00:05]} 2. d4 {[%emt 0:00:05]} d5 {[%emt 0:00:10]} 3. e5 {[%emt 0:00:10]} c5 {[%emt 0:00:03]} 4. c3 {[%emt 0:00:06]} Nc6 {[%emt 0:00:04]} 5. Nf3 {[%emt 0:00:06]} Bd7 {[%emt 0:00:06]} 6. Be2 {[%emt 0:00:46]} Nge7 {[%emt 0:00:06]} 7. O-O {[%emt 0:01:34]} Rc8 {[%emt 0:00:43]} 8. a3 {[%emt 0:01:45]} cxd4 {[%emt 0:04:03]} 9. cxd4 {[%emt 0:00:31]} Nf5 {[%emt 0:00:09]} 10. Nc3 {[%emt 0:09:58]} Be7 {[%emt 0:01:50]} 11. Re1 {[%emt 0:01:47]} a6 {[%emt 0:03:28]} 12. Bf1 {[%emt 0:08:26]} O-O {[%emt 0:01:41]} 13. Bd3 {[%emt 0:00:34]} Be8 {[%emt 0:14:13]} 14. Bxf5 {[%emt 0:04:04]} exf5 {[%emt 0:00:04]} 15. Qb3 {[%emt 0:01:12]} Na5 {[%emt 0:06:35]} 16. Qxd5 {[%emt 0:02:19]} Bc6 {[%emt 0:00:09]} 17. Qxd8 {[%emt 0:01:51]} Rfxd8 {[%emt 0:00:01]} 18. Be3 {[%emt 0:02:31]} Bxf3 {[%emt 0:10:12]} 19. gxf3 {[%emt 0:00:51]} Nb3 {[%emt 0:56:18]} 20. Rad1 {[%emt 0:00:31]} f4 {[%emt 0:00:00]} 21. Bxf4 {[%emt 0:03:43]} Nxd4 {[%emt 0:00:00]} 22. Kg2 {[%emt 0:03:11]} Nc2 {[%emt 0:00:00]} 23. Rxd8+ {[%emt 0:12:38]} Rxd8 {[%emt 0:00:00]} 24. Rc1 {[%emt 0:01:06]} Nd4 {[%emt 0:00:00]} 25. Rd1 {[%emt 0:01:20]} Kf8 {[%emt 0:00:00]} 26. Be3 {[%emt 0:02:22]} Nc6 {[%emt 0:00:00]} 27. Rxd8+ {[%emt 0:01:24]} Bxd8 {[%emt 0:00:00]} 28. Bc5+ {[%emt 0:03:52]} Be7 {[%emt 0:00:00]} 29. Bxe7+ {[%emt 0:05:17]} Kxe7 {[%emt 0:00:00]} 30. f4 {[%emt 0:00:32]} Ke6 {[%emt 0:00:00]} 1/2-1/2

[Event "XVI Memorial Lezcano Montalvo 2024"]
[Site "Gran Canaria"]
[Date "2024.03.25"]
[Round "3.33"]
[White "Zhou, Lepu Coco"]
[Black "Matos Espino, Carlos Silverio"]
[Result "1-0"]
[ECO "B32"]
[WhiteElo "1980"]
[BlackElo "1726"]
[Annotator "RC"]
[PlyCount "77"]
[EventDate "2024.03.23"]
[EventType "swiss"]
[EventCountry "ESP"]
[SourceTitle "playchess.com"]
[Source "ChessBase"]
[SourceQuality "1"]
[TimeControl "5400+30"]

1. e4 {[%emt 0:00:04]} c5 {[%emt 0:00:05]} 2. Nf3 {[%emt 0:00:08]} Nc6 {[%emt 0:00:11]} 3. d4 {[%emt 0:00:06]} cxd4 {[%emt 0:00:07]} 4. Nxd4 {[%emt 0:00:07]} e5 {[%emt 0:00:11]} 5. Nb5 {[%emt 0:00:41]} d6 {[%emt 0:00:08]} 6. c4 {[%emt 0:00:19]} Be7 {[%emt 0:00:56]} 7. N1c3 {[%emt 0:00:56]} Nf6 {[%emt 0:00:30]} 8. Nd5 {[%emt 0:03:47]} O-O {[%emt 0:04:40]} 9. Nxf6+ {[%emt 0:02:20]} Bxf6 {[%emt 0:01:13]} 10. Qxd6 {[%emt 0:01:10]} Be6 {[%emt 0:02:29]} 11. Be3 {[%emt 0:05:27]} a6 {[%emt 0:09:15]} 12. Qxd8 {[%emt 0:00:37]} Rfxd8 {[%emt 0:03:20]} 13. Nc7 {[%emt 0:09:42]} Nb4 {[%emt 0:08:12]} 14. Nxa8 {[%emt 0:02:47]} Nc2+ {[%emt 0:01:02]} 15. Ke2 {[%emt 0:00:07]} Nxa1 {[%emt 0:00:31]} 16. Nb6 {[%emt 0:00:14]} Nc2 {[%emt 0:00:57]} 17. Nd5 {[%emt 0:01:51]} Nxe3 {[%emt 0:04:03]} 18. Kxe3 {[%emt 0:06:07]} Bg5+ {[%emt 0:01:45]} 19. Kd3 {[%emt 0:00:41]} f5 {[%emt 0:00:35]} 20. h4 {[%emt 0:03:26]} Be7 {[%emt 0:00:52]} 21. Be2 {[%emt 0:08:48]} Bc5 {[%emt 0:01:47]} 22. f3 {[%emt 0:06:33]} g6 {[%emt 0:11:54]} 23. Rd1 {[%emt 0:03:33]} fxe4+ {[%emt 0:02:34]} 24. fxe4 {[%emt 0:00:08]} Rf8 {[%emt 0:00:20]} 25. Bf3 {[%emt 0:05:28]} a5 {[%emt 0:03:00]} 26. a3 {[%emt 0:01:55]} Bxd5 {[%emt 0:02:11]} 27. exd5 {[%emt 0:04:00]} Rf4 {[%emt 0:00:15]} 28. Re1 {[%emt 0:01:02]} Rd4+ {[%emt 0:00:44]} 29. Kc3 {[%emt 0:00:36]} Rxh4 {[%emt 0:00:05]} 30. b4 {[%emt 0:01:24]} axb4+ {[%emt 0:01:27]} 31. axb4 {[%emt 0:00:08]} Bd4+ {[%emt 0:02:53]} 32. Kd3 {[%emt 0:00:06]} b6 {[%emt 0:00:22]} 33. d6 {[%emt 0:02:02]} Bf2 {[%emt 0:03:10]} 34. Bd5+ {[%emt 0:01:15]} Kf8 {[%emt 0:00:09]} 35. Rxe5 {[%emt 0:00:35]} b5 {[%emt 0:03:30]} 36. c5 {[%emt 0:05:22]} Rxb4 {[%emt 0:07:37]} 37. c6 {[%emt 0:00:09]} Rd4+ {[%emt 0:01:46]} 38. Ke2 {[%emt 0:00:22]} Bg3 {[%emt 0:01:30]} 39. d7 {[%emt 0:01:57]} 1-0

[Event "XVI Memorial Lezcano Montalvo 2024"]
[Site "Gran Canaria"]
[Date "2024.03.25"]
[Round "3.34"]
[White "Garcia Almeida, Valeria"]
[Black "Camino Carrio, Nicanor"]
[Result "0-1"]
[ECO "E62"]
[WhiteElo "1682"]
[BlackElo "1962"]
[Annotator "RC"]
[PlyCount "74"]
[EventDate "2024.03.23"]
[EventType "swiss"]
[EventCountry "ESP"]
[SourceTitle "playchess.com"]
[Source "ChessBase"]
[SourceQuality "1"]
[TimeControl "5400+30"]

1. c4 {[%emt 0:00:06]} Nf6 {[%emt 0:00:20]} 2. Nc3 {[%emt 0:00:39]} g6 {[%emt 0:00:45]} 3. d4 {[%emt 0:01:43]} Bg7 {[%emt 0:00:09]} 4. g3 {[%emt 0:01:16]} O-O {[%emt 0:00:40]} 5. Bg2 {[%emt 0:00:53]} d6 {[%emt 0:00:20]} 6. Nf3 {[%emt 0:01:58]} Nbd7 {[%emt 0:00:21]} 7. O-O {[%emt 0:00:58]} c6 {[%emt 0:01:42]} 8. Qc2 {[%emt 0:08:40]} e5 {[%emt 0:01:15]} 9. dxe5 {[%emt 0:01:34]} Nxe5 {[%emt 0:02:48]} 10. Nxe5 {[%emt 0:10:58]} dxe5 {[%emt 0:00:08]} 11. e4 {[%emt 0:01:55]} Be6 {[%emt 0:06:49]} 12. b3 {[%emt 0:00:48]} Qc8 {[%emt 0:00:31]} 13. Bb2 {[%emt 0:04:09]} Bh3 {[%emt 0:00:46]} 14. Rfd1 {[%emt 0:02:20]} Bxg2 {[%emt 0:00:09]} 15. Kxg2 {[%emt 0:00:06]} Qe6 {[%emt 0:02:14]} 16. Qe2 {[%emt 0:08:23]} h5 {[%emt 0:00:45]} 17. Rd3 {[%emt 0:02:33]} Rfd8 {[%emt 0:09:46]} 18. Rad1 {[%emt 0:04:02]} Rxd3 {[%emt 0:01:13]} 19. Rxd3 {[%emt 0:00:08]} Bf8 {[%emt 0:00:40]} 20. Qd1 {[%emt 0:04:51]} h4 {[%emt 0:08:36]} 21. gxh4 {[%emt 0:09:54]} Be7 {[%emt 0:00:41]} 22. Rg3 {[%emt 0:07:14]} Rd8 {[%emt 0:02:07]} 23. Qf3 {[%emt 0:06:11]} Kh7 {[%emt 0:02:13]} 24. Bc1 {[%emt 0:00:27]} Nh5 {[%emt 0:02:35]} 25. Rh3 {[%emt 0:11:55]} Bb4 {[%emt 0:00:52]} 26. Qe2 {[%emt 0:02:47]} Qd7 {[%emt 0:04:43]} 27. Rf3 {[%emt 0:04:35]} Qg4+ {[%emt 0:02:39]} 28. Kh1 {[%emt 0:00:41]} Qd7 {[%emt 0:02:57]} 29. Kg2 {[%emt 0:02:40]} Kg8 {[%emt 0:01:08]} 30. Na4 {[%emt 0:01:06]} Qg4+ {[%emt 0:02:56]} 31. Kf1 {[%emt 0:00:00]} Qxh4 {[%emt 0:01:31]} 32. h3 {[%emt 0:00:06]} Rd4 {[%emt 0:01:20]} 33. Re3 {[%emt 0:00:26]} Nf4 {[%emt 0:01:57]} 34. Qc2 {[%emt 0:00:52]} Nxh3 {[%emt 0:02:43]} 35. a3 {[%emt 0:00:09]} Nf4 {[%emt 0:01:23]} 36. Rg3 {[%emt 0:00:40]} Qh1+ {[%emt 0:00:22]} 37. Rg1 {[%emt 0:00:06]} Qh3+ {[%emt 0:00:18]} 0-1

[Event "XVI Memorial Lezcano Montalvo 2024"]
[Site "Gran Canaria"]
[Date "2024.03.25"]
[Round "3.36"]
[White "Roca Marrero, Fernando"]
[Black "Guerrero Orihuela, Jose Luis"]
[Result "0-1"]
[ECO "A45"]
[WhiteElo "1666"]
[BlackElo "1948"]
[Annotator "RC"]
[PlyCount "70"]
[EventDate "2024.03.23"]
[EventType "swiss"]
[EventCountry "ESP"]
[SourceTitle "playchess.com"]
[Source "ChessBase"]
[SourceQuality "1"]
[TimeControl "5400+30"]

1. d4 {[%emt 0:00:06]} Nf6 {[%emt 0:00:03]} 2. Bf4 {[%emt 0:00:27]} g6 {[%emt 0:00:07]} 3. e3 {[%emt 0:01:50]} Bg7 {[%emt 0:00:09]} 4. Be2 {[%emt 0:00:23]} O-O {[%emt 0:00:08]} 5. h4 {[%emt 0:00:10]} c5 {[%emt 0:10:46]} 6. h5 {[%emt 0:00:11]} Qb6 {[%emt 0:00:33]} 7. Qc1 {[%emt 0:03:19]} cxd4 {[%emt 0:03:47]} 8. hxg6 {[%emt 0:00:49]} fxg6 {[%emt 0:00:19]} 9. exd4 {[%emt 0:00:30]} Nd5 {[%emt 0:03:26]} 10. Be5 {[%emt 0:15:00]} Bxe5 {[%emt 0:00:11]} 11. dxe5 {[%emt 0:09:35]} Qxf2+ {[%emt 0:00:08]} 12. Kd1 {[%emt 0:00:04]} Ne3+ {[%emt 0:00:21]} 13. Kd2 {[%emt 0:00:27]} Qxg2 {[%emt 0:00:07]} 14. Na3 {[%emt 0:01:42]} Nf1+ {[%emt 0:03:08]} 15. Kc3 {[%emt 0:01:38]} Qxh1 {[%emt 0:01:14]} 16. Qg5 {[%emt 0:00:40]} Qc6+ {[%emt 0:02:20]} 17. Nc4 {[%emt 0:00:42]} b5 {[%emt 0:14:14]} 18. Rxf1 {[%emt 0:00:11]} Rxf1 {[%emt 0:00:07]} 19. Bxf1 {[%emt 0:00:06]} Na6 {[%emt 0:00:14]} 20. Qxe7 {[%emt 0:01:13]} Bb7 {[%emt 0:00:31]} 21. b4 {[%emt 0:11:39]} Nc7 {[%emt 0:00:39]} 22. Kb3 {[%emt 0:02:49]} bxc4+ {[%emt 0:00:00]} 23. Bxc4+ {[%emt 0:00:02]} Ne6 {[%emt 0:00:00]} 24. Ne2 {[%emt 0:01:08]} Rc8 {[%emt 0:00:00]} 25. Qh4 {[%emt 0:01:47]} Qe4 {[%emt 0:00:33]} 26. Qxe4 {[%emt 0:08:03]} Bxe4 {[%emt 0:00:07]} 27. Nd4 {[%emt 0:00:38]} Rxc4 {[%emt 0:00:57]} 28. Kxc4 {[%emt 0:00:23]} Nxd4 {[%emt 0:00:04]} 29. Kxd4 {[%emt 0:00:22]} Bxc2 {[%emt 0:00:05]} 30. b5 {[%emt 0:01:11]} h5 {[%emt 0:00:06]} 31. Kc5 {[%emt 0:00:15]} h4 {[%emt 0:00:34]} 32. Kd6 {[%emt 0:00:13]} h3 {[%emt 0:00:00]} 33. Kxd7 {[%emt 0:00:07]} h2 {[%emt 0:00:00]} 34. e6 {[%emt 0:00:05]} h1=Q {[%emt 0:00:00]} 35. e7 {[%emt 0:00:23]} Qd5+ {[%emt 0:00:00]} 0-1

[Event "XVI Memorial Lezcano Montalvo 2024"]
[Site "Gran Canaria"]
[Date "2024.03.25"]
[Round "3.37"]
[White "Arnaiz Yanes, Miguel Angel"]
[Black "Fernandez Hernandez, Javier"]
[Result "1-0"]
[ECO "D03"]
[WhiteElo "1947"]
[BlackElo "1690"]
[Annotator "RC"]
[PlyCount "85"]
[EventDate "2024.03.23"]
[EventType "swiss"]
[EventCountry "ESP"]
[SourceTitle "playchess.com"]
[Source "ChessBase"]
[SourceQuality "1"]
[TimeControl "5400+30"]

1. d4 {[%emt 0:00:02]} d5 {[%emt 0:00:11]} 2. Nf3 {[%emt 0:00:02]} Nf6 {[%emt 0:00:06]} 3. Bg5 {[%emt 0:00:06]} Ne4 {[%emt 0:00:40]} 4. Bh4 {[%emt 0:00:23]} Nd7 {[%emt 0:03:55]} 5. Nbd2 {[%emt 0:00:15]} Ndf6 {[%emt 0:00:24]} 6. e3 {[%emt 0:00:15]} c6 {[%emt 0:07:19]} 7. Bd3 {[%emt 0:01:04]} Qb6 {[%emt 0:05:35]} 8. Rb1 {[%emt 0:00:28]} g6 {[%emt 0:00:31]} 9. O-O {[%emt 0:00:14]} Bg7 {[%emt 0:00:09]} 10. c4 {[%emt 0:00:53]} Bf5 {[%emt 0:02:49]} 11. Qc2 {[%emt 0:03:27]} Nxd2 {[%emt 0:04:03]} 12. Nxd2 {[%emt 0:00:13]} Bxd3 {[%emt 0:02:12]} 13. Qxd3 {[%emt 0:00:03]} O-O {[%emt 0:00:17]} 14. c5 {[%emt 0:01:58]} Qd8 {[%emt 0:00:06]} 15. b4 {[%emt 0:00:10]} a6 {[%emt 0:00:36]} 16. a4 {[%emt 0:00:26]} Qd7 {[%emt 0:00:18]} 17. h3 {[%emt 0:01:01]} Ne8 {[%emt 0:00:20]} 18. b5 {[%emt 0:02:31]} axb5 {[%emt 0:01:06]} 19. axb5 {[%emt 0:00:07]} e5 {[%emt 1:09:23]} 20. Bg3 {[%emt 1:26:52]} exd4 {[%emt 0:00:00]} 21. exd4 {[%emt 0:00:00]} cxb5 {[%emt 0:00:00]} 22. Nf3 {[%emt 0:00:00]} Nc7 {[%emt 0:00:00]} 23. Bxc7 {[%emt 0:00:00]} Qxc7 {[%emt 0:00:00]} 24. Rb3 {[%emt 0:02:00]} b4 25. Rxb4 {[%emt 0:00:00]} Ra4 {[%emt 0:00:00]} 26. Rb5 {[%emt 0:00:00]} Qe5 {[%emt 0:03:30]} 27. Rfb1 Qf4 {[%emt 0:00:00]} 28. g3 {[%emt 0:00:00]} Qf6 {[%emt 0:00:00]} 29. Rxb7 {[%emt 0:00:00]} Qd8 {[%emt 0:00:00]} 30. Kg2 {[%emt 0:00:00]} Qa8 {[%emt 0:00:00]} 31. R1b3 {[%emt 0:00:00]} Rc4 {[%emt 0:00:00]} 32. R7b4 {[%emt 0:00:00]} Qa6 {[%emt 0:00:00]} 33. Nd2 {[%emt 0:00:00]} Qa8 {[%emt 0:00:00]} 34. Qf3 {[%emt 0:00:00]} Rc1 {[%emt 0:00:00]} 35. Qf4 {[%emt 0:00:00]} Qa1 {[%emt 0:00:00]} 36. Rb1 {[%emt 0:06:00]} Rxb1 {[%emt 0:00:00]} 37. Nxb1 {[%emt 0:00:00]} Rc8 {[%emt 0:00:00]} 38. Nd2 {[%emt 0:00:00]} Qc3 {[%emt 0:00:00]} 39. Ra4 {[%emt 0:00:00]} Qc2 {[%emt 0:00:00]} 40. Ra7 {[%emt 0:00:00]} f6 {[%emt 0:00:00]} 41. Nf3 {[%emt 0:00:00]} f5 {[%emt 0:00:00]} 42. Qd6 {[%emt 0:00:00]} Qe4 {[%emt 0:00:00]} 43. Qd7 {[%emt 0:00:00]} 1-0